{"text_format":"1","workbook":"xlsx","n_sheets":3,"sheets":["Лист1","Лист2","Лист3"],"not_rendered":{"charts":0,"images":0,"macros":1,"external_links":0,"defined_names":0,"comments":0,"pivot_tables":0},"unopened":[],"bounds":{"document_bytes":16777216,"sheet_cells":100000,"rows_first":2000,"rows_last":500,"rows_between":2000,"halvings":0,"cell_chars":16384,"cell_head_chars":4096},"cells_cut":0,"cells_raw":0,"read":"whole","date_system":"1900"}

{"sheet":"Лист1","index":0,"n_rows":25,"n_cols":12,"rows_kept":25,"cut":false,"hidden":false,"merged":[]}
["Дисциплина","Золото","Серебро","Бронза",null,null,null,null,"Страны","Золото","Серебро","Бронза"]
["100 м","Италия","Франция","США",null,null,null,null,"Италия",{"$f":" SUMPRODUCT(($B$2:$D$8=$I2)*($B$1:$D$1=J$1))","v":3},{"$f":" SUMPRODUCT(($B$2:$D$8=$I2)*($B$1:$D$1=K$1))","v":1},1]
["200 м",null,null,null,null,null,null,null,null,{"$f":" SUMPRODUCT(($B$2:$D$8=$I3)*($B$1:$D$1=J$1))","v":2},2,2]
["400 м","Франция","Россия","Китай",null,null,null,null,"Франция",1,1,0]
["Длина",null,null,null,null,null,null,null,"Россия",1,2,0]
["Высота","Россия","Китая","Италия",null,null,null,null,"Китая",0,1,0]
["Ядро","Италия","Россия","Куба",null,null,null,null,"СССр",0,0,0]
["Молот","Италия","Италия","Египет",null,null,null,null,"США",0,0,1]
["Литрбол","Россия","СССр","Польша",null,null,null,null,"Китай",0,0,1]
[null,null,null,null,null,null,null,null,"Куба",0,0,1]
[null,null,null,null,null,null,null,null,"Египет",0,0,1]
[null,null,null,null,null,null,null,null,"Польша",0,0,0]
[null,null,null,null,null,null,null,null,null,2,2,2]
[null,null,null,null,null,null,null,null,null,2,2,2]
[null,null,null,null,null,null,null,null,null,2,2,2]
[null,null,null,null,null,null,null,null,null,2,2,2]
[null,null,null,null,null,null,null,null,null,2,2,2]
[null,null,null,null,null,null,null,null,null,2,2,2]
[null,null,null,null,null,null,null,null,null,{"$f":" SUMPRODUCT(($B$2:$D$8=$I19)*($B$1:$D$1=J$1))","v":2},2,2]
[null,null,null,null,null,null,null,null,null,2,2,2]
[null,null,null,null,null,null,null,null,null,2,2,2]
[null,null,null,null,null,null,null,null,null,2,2,2]
[null,null,null,null,null,null,null,null,null,2,2,2]
[null,null,null,null,null,null,null,null,null,2,2,2]
[null,null,null,null,null,null,null,null,null,2,2,2]

{"sheet":"Лист2","index":1,"n_rows":0,"n_cols":0,"rows_kept":0,"cut":false,"hidden":false,"merged":[]}

{"sheet":"Лист3","index":2,"n_rows":0,"n_cols":0,"rows_kept":0,"cut":false,"hidden":false,"merged":[]}